[Event "January 9 Early 2024"]
[Site "https://www.chess.com"]
[Date "2024.01.11"]
[Round "5"]
[White "Sokolovsky, Yahli"]
[Black "Sadhwani, Raunak"]
[Result "1-0"]
[Board "289"]
[TimeControl "180+1"]
[WhiteFideId "2820242"]
[BlackFideId "35093487"]
[WhiteElo "2777"]
[BlackElo "3060"]
[WhiteTeam "ISR"]
[BlackTeam "IND"]
[WhiteClock "0:00:05"]
[BlackClock "0:00:02"]

1. b3 {[%clk 0:03:00]}  e5 {[%clk 0:02:59]} 2. Bb2 {[%clk 0:03:01]}  Nc6 {[%clk 0:03:00]} 3. e3 {[%clk 0:03:01]}  Nf6 {[%clk 0:03:00]} 4. Nf3 {[%clk 0:03:01]}  e4 {[%clk 0:02:59]} 5. Nd4 {[%clk 0:03:02]}  Bc5 {[%clk 0:02:59]} 6. Nxc6 {[%clk 0:02:58]}  dxc6 {[%clk 0:03:00]} 7. d4 {[%clk 0:02:59]}  Bd6 {[%clk 0:02:49]} 8. c4 {[%clk 0:02:59]}  Bf5 {[%clk 0:02:44]} 9. Nc3 {[%clk 0:03:00]}  Qd7 {[%clk 0:02:44]} 10. Be2 {[%clk 0:02:56]}  O-O-O {[%clk 0:02:43]} 11. Qc2 {[%clk 0:02:54]}  h5 {[%clk 0:02:41]} 12. O-O-O {[%clk 0:02:54]}  h4 {[%clk 0:02:41]} 13. h3 {[%clk 0:02:54]}  Kb8 {[%clk 0:02:39]} 14. Kb1 {[%clk 0:02:47]}  a6 {[%clk 0:02:39]} 15. a3 {[%clk 0:02:46]}  Rh6 {[%clk 0:02:38]} 16. Rd2 {[%clk 0:02:44]}  Rg6 {[%clk 0:02:39]} 17. Rhd1 {[%clk 0:02:04]}  Rxg2 {[%clk 0:02:16]} 18. Bf1 {[%clk 0:02:04]}  Rg1 {[%clk 0:02:10]} 19. Na4 {[%clk 0:01:49]}  Bxh3 {[%clk 0:02:01]} 20. Nc5 {[%clk 0:01:35]}  Qf5 {[%clk 0:01:18]} 21. Bxh3 {[%clk 0:01:17]}  Rxd1+ {[%clk 0:01:19]} 22. Rxd1 {[%clk 0:01:18]}  Qxh3 {[%clk 0:01:19]} 23. Nxe4 {[%clk 0:01:18]}  Nxe4 {[%clk 0:01:13]} 24. Qxe4 {[%clk 0:01:19]}  f5 {[%clk 0:01:07]} 25. Qh1 {[%clk 0:00:45]}  Qxh1 {[%clk 0:01:01]} 26. Rxh1 {[%clk 0:00:46]}  g5 {[%clk 0:01:02]} 27. f4 {[%clk 0:00:46]}  gxf4 {[%clk 0:01:02]} 28. exf4 {[%clk 0:00:47]}  Rh8 {[%clk 0:00:54]} 29. Bc1 {[%clk 0:00:48]}  Be7 {[%clk 0:00:48]} 30. Kc2 {[%clk 0:00:26]}  Kc8 {[%clk 0:00:48]} 31. Kd3 {[%clk 0:00:23]}  Rg8 {[%clk 0:00:49]} 32. Be3 {[%clk 0:00:20]}  Rg4 {[%clk 0:00:49]} 33. Ke2 {[%clk 0:00:19]}  Bxa3 {[%clk 0:00:47]} 34. c5 {[%clk 0:00:16]}  Bb4 {[%clk 0:00:36]} 35. Kf3 {[%clk 0:00:15]}  Kd7 {[%clk 0:00:29]} 36. Bf2 {[%clk 0:00:16]}  Bd2 {[%clk 0:00:29]} 37. Bxh4 {[%clk 0:00:13]}  Rxf4+ {[%clk 0:00:27]} 38. Ke2 {[%clk 0:00:13]}  Rxd4 {[%clk 0:00:24]} 39. Bf2 {[%clk 0:00:08]}  Rd5 {[%clk 0:00:22]} 40. Rh7+ {[%clk 0:00:08]}  Ke6 {[%clk 0:00:19]} 41. Rxc7 {[%clk 0:00:09]}  Bb4 {[%clk 0:00:14]} 42. Rxb7 {[%clk 0:00:10]}  a5 {[%clk 0:00:13]} 43. Rc7 {[%clk 0:00:09]}  Rd2+ {[%clk 0:00:13]} 44. Ke3 {[%clk 0:00:03]}  Rb2 {[%clk 0:00:09]} 45. Rxc6+ {[%clk 0:00:04]}  Kd5 {[%clk 0:00:09]} 46. Rd6+ {[%clk 0:00:02]}  Kxc5 {[%clk 0:00:08]} 47. Rd3 {[%clk 0:00:02]}  Kb5 {[%clk 0:00:05]} 48. Kf3 {[%clk 0:00:03]}  Bc5 {[%clk 0:00:06]} 49. Bg3 {[%clk 0:00:02]}  Kb4 {[%clk 0:00:05]} 50. Be1+ {[%clk 0:00:03]}  Kb5 {[%clk 0:00:05]} 51. Bg3 {[%clk 0:00:03]}  Bb6 {[%clk 0:00:03]} 52. Bd6 {[%clk 0:00:03]}  Kc6 {[%clk 0:00:03]} 53. Be7 {[%clk 0:00:02]}  Rf2+ {[%clk 0:00:03]} 54. Kg3 {[%clk 0:00:02]}  Rf1 {[%clk 0:00:04]} 55. Bg5 {[%clk 0:00:02]}  Bc7+ {[%clk 0:00:03]} 56. Kg2 {[%clk 0:00:02]}  Rb1 {[%clk 0:00:04]} 57. Kf3 {[%clk 0:00:03]}  Bd6 {[%clk 0:00:04]} 58. Bf6 {[%clk 0:00:03]}  f4 {[%clk 0:00:04]} 59. Bg5 {[%clk 0:00:03]}  Rf1+ {[%clk 0:00:04]} 60. Kg2 {[%clk 0:00:03]}  Re1 {[%clk 0:00:04]} 61. Kf3 {[%clk 0:00:04]}  Rf1+ {[%clk 0:00:05]} 62. Kg2 {[%clk 0:00:04]}  Rb1 {[%clk 0:00:06]} 63. Kf3 {[%clk 0:00:05]}  Be5 {[%clk 0:00:06]} 64. Ke4 {[%clk 0:00:05]}  Re1+ {[%clk 0:00:06]} 65. Kf3 {[%clk 0:00:04]}  Bb8 {[%clk 0:00:06]} 66. Rd2 {[%clk 0:00:03]}  Re3+ {[%clk 0:00:05]} 67. Kg4 {[%clk 0:00:04]}  Rg3+ {[%clk 0:00:05]} 68. Kf5 {[%clk 0:00:04]}  Rxb3 {[%clk 0:00:06]} 69. Rc2+ {[%clk 0:00:04]}  Kd7 {[%clk 0:00:06]} 70. Ra2 {[%clk 0:00:04]}  Bc7 {[%clk 0:00:05]} 71. Rd2+ {[%clk 0:00:03]}  Kc8 {[%clk 0:00:05]} 72. Rc2 {[%clk 0:00:04]}  Rb5+ {[%clk 0:00:05]} 73. Kg4 {[%clk 0:00:04]}  Rb4 {[%clk 0:00:05]} 74. Be7 {[%clk 0:00:02]}  Rd4 {[%clk 0:00:05]} 75. Bc5 {[%clk 0:00:02]}  Re4 {[%clk 0:00:03]} 76. Bd6 {[%clk 0:00:01]}  f3+ {[%clk 0:00:02]} 77. Kxf3 {[%clk 0:00:01]}  Ra4 {[%clk 0:00:02]} 78. Bxc7 {[%clk 0:00:02]}  Kd7 {[%clk 0:00:02]} 79. Bf4 {[%clk 0:00:02]}  Rb4 {[%clk 0:00:03]} 80. Be3 {[%clk 0:00:02]}  a4 {[%clk 0:00:03]} 81. Ke2 {[%clk 0:00:03]}  Ke6 {[%clk 0:00:03]} 82. Rc6+ {[%clk 0:00:03]}  Kd5 {[%clk 0:00:04]} 83. Ra6 {[%clk 0:00:04]}  Kc4 {[%clk 0:00:04]} 84. Bd2 {[%clk 0:00:04]}  Kb5 {[%clk 0:00:03]} 85. Ra8 {[%clk 0:00:04]}  Rd4 {[%clk 0:00:03]} 86. Ra5+ {[%clk 0:00:04]}  Kb6 {[%clk 0:00:04]} 87. Ra8 {[%clk 0:00:03]}  Kb5 {[%clk 0:00:04]} 88. Kd1 {[%clk 0:00:02]}  Rc4 {[%clk 0:00:03]} 89. Ra5+ {[%clk 0:00:02]}  Kc6 {[%clk 0:00:04]} 90. Ra8 {[%clk 0:00:02]}  Kd5 {[%clk 0:00:04]} 91. Ke2 {[%clk 0:00:03]}  Ke4 {[%clk 0:00:04]} 92. Ra7 {[%clk 0:00:03]}  Kd4 {[%clk 0:00:04]} 93. Ra5 {[%clk 0:00:03]}  Ke4 {[%clk 0:00:04]} 94. Rh5 {[%clk 0:00:03]}  Kd4 {[%clk 0:00:04]} 95. Rg5 {[%clk 0:00:03]}  Ke4 {[%clk 0:00:04]} 96. Rg4+ {[%clk 0:00:03]}  Kd5 {[%clk 0:00:04]} 97. Rg8 {[%clk 0:00:04]}  Kd4 {[%clk 0:00:04]} 98. Rd8+ {[%clk 0:00:04]}  Ke4 {[%clk 0:00:04]} 99. Kd1 {[%clk 0:00:04]}  Rd4 {[%clk 0:00:04]} 100. Re8+ {[%clk 0:00:04]}  Kd3 {[%clk 0:00:04]} 101. Rc8 {[%clk 0:00:04]}  Rc4 {[%clk 0:00:05]} 102. Rd8+ {[%clk 0:00:04]}  Rd4 {[%clk 0:00:05]} 103. Ra8 {[%clk 0:00:05]}  Rh4 {[%clk 0:00:05]} 104. Rd8+ {[%clk 0:00:04]}  Rd4 {[%clk 0:00:05]} 105. Rg8 {[%clk 0:00:04]}  Rc4 {[%clk 0:00:03]} 106. Rg3+ {[%clk 0:00:04]}  Kd4 {[%clk 0:00:03]} 107. Bc1 {[%clk 0:00:04]}  Ke4 {[%clk 0:00:04]} 108. Bb2 {[%clk 0:00:04]}  Kd5 {[%clk 0:00:04]} 109. Kd2 {[%clk 0:00:04]}  Kc5 {[%clk 0:00:05]} 110. Ba3+ {[%clk 0:00:04]}  Kd4 {[%clk 0:00:04]} 111. Rg4+ {[%clk 0:00:05]}  Kd5 {[%clk 0:00:05]} 112. Rg5+ {[%clk 0:00:06]}  Ke4 {[%clk 0:00:05]} 113. Bb2 {[%clk 0:00:06]}  Kf4 {[%clk 0:00:05]} 114. Rh5 {[%clk 0:00:06]}  Ke4 {[%clk 0:00:06]} 115. Rh7 {[%clk 0:00:06]}  Kf5 {[%clk 0:00:04]} 116. Re7 {[%clk 0:00:05]}  Re4 {[%clk 0:00:04]} 117. Ra7 {[%clk 0:00:05]}  Ke6 {[%clk 0:00:04]} 118. Kd3 {[%clk 0:00:06]}  Rg4 {[%clk 0:00:04]} 119. Bd4 {[%clk 0:00:06]}  a3 {[%clk 0:00:05]} 120. Rxa3 {[%clk 0:00:05]}  Rg3+ {[%clk 0:00:05]} 121. Be3 {[%clk 0:00:06]}  Rg4 {[%clk 0:00:06]} 122. Ra6+ {[%clk 0:00:06]}  Kd5 {[%clk 0:00:06]} 123. Ra5+ {[%clk 0:00:07]}  Kc6 {[%clk 0:00:07]} 124. Bd4 {[%clk 0:00:07]}  Rg2 {[%clk 0:00:07]} 125. Kc4 {[%clk 0:00:08]}  Rc2+ {[%clk 0:00:07]} 126. Bc3 {[%clk 0:00:08]}  Rc1 {[%clk 0:00:08]} 127. Rh5 {[%clk 0:00:09]}  Kc7 {[%clk 0:00:07]} 128. Rh6 {[%clk 0:00:09]}  Kc8 {[%clk 0:00:07]} 129. Kd4 {[%clk 0:00:09]}  Kc7 {[%clk 0:00:07]} 130. Bb4 {[%clk 0:00:10]}  Rc6 {[%clk 0:00:06]} 131. Rh7+ {[%clk 0:00:09]}  Kb6 {[%clk 0:00:06]} 132. Rh8 {[%clk 0:00:10]}  Rc1 {[%clk 0:00:06]} 133. Kd5 {[%clk 0:00:07]}  Rd1+ {[%clk 0:00:07]} 134. Kc4 {[%clk 0:00:07]}  Rc1+ {[%clk 0:00:07]} 135. Bc3 {[%clk 0:00:08]}  Kc7 {[%clk 0:00:08]} 136. Rh6 {[%clk 0:00:08]}  Kd7 {[%clk 0:00:08]} 137. Kd4 {[%clk 0:00:08]}  Kc7 {[%clk 0:00:08]} 138. Bb4 {[%clk 0:00:08]}  Rc6 {[%clk 0:00:07]} 139. Rh5 {[%clk 0:00:08]}  Kb6 {[%clk 0:00:07]} 140. Bc5+ {[%clk 0:00:07]}  Kb5 {[%clk 0:00:07]} 141. Re5 {[%clk 0:00:06]}  Rc8 {[%clk 0:00:07]} 142. Bd6+ {[%clk 0:00:06]}  Kb6 {[%clk 0:00:07]} 143. Re1 {[%clk 0:00:05]}  Rc2 {[%clk 0:00:07]} 144. Be5 {[%clk 0:00:02]}  Kc6 {[%clk 0:00:07]} 145. Rh1 {[%clk 0:00:02]}  Kb5 {[%clk 0:00:05]} 146. Rh5 {[%clk 0:00:02]}  Kc6 {[%clk 0:00:06]} 147. Rh6+ {[%clk 0:00:02]}  Kb5 {[%clk 0:00:06]} 148. Rh8 {[%clk 0:00:03]}  Kb6 {[%clk 0:00:05]} 149. Rb8+ {[%clk 0:00:03]}  Ka7 {[%clk 0:00:06]} 150. Rb1 {[%clk 0:00:03]}  Ka6 {[%clk 0:00:03]} 151. Kd5 {[%clk 0:00:03]}  Rc8 {[%clk 0:00:04]} 152. Bd6 {[%clk 0:00:03]}  Rc2 {[%clk 0:00:02]} 153. Bc5 {[%clk 0:00:04]}  Rd2+ {[%clk 0:00:03]} 154. Kc6 {[%clk 0:00:04]}  Ra2 {[%clk 0:00:02]} 155. Rb8 {[%clk 0:00:05]} 1-0

[Event "January 9 Early 2024"]
[Site "https://www.chess.com"]
[Date "2024.01.11"]
[Round "6"]
[White "Spichkin, Alexander"]
[Black "Andreev, Konstantin"]
[Result "1-0"]
[Board "2"]
[TimeControl "180+1"]
[WhiteFideId "4144074"]
[BlackFideId "24239305"]
[WhiteElo "2408"]
[BlackElo "2520"]
[WhiteTeam "RUS"]
[BlackTeam "ITA"]
[WhiteClock "0:02:19"]
[BlackClock "0:02:43"]

1. f4 {[%clk 0:02:55]}  d5 {[%clk 0:02:59]} 2. Nf3 {[%clk 0:02:54]}  Nf6 {[%clk 0:03:00]} 3. e3 {[%clk 0:02:54]}  b6 {[%clk 0:03:01]} 4. Be2 {[%clk 0:02:54]}  e6 {[%clk 0:03:02]} 5. O-O {[%clk 0:02:54]}  Be7 {[%clk 0:03:03]} 6. b3 {[%clk 0:02:55]}  O-O {[%clk 0:03:04]} 7. Bb2 {[%clk 0:02:54]}  c5 {[%clk 0:03:05]} 8. Ne5 {[%clk 0:02:54]}  Bb7 {[%clk 0:03:04]} 9. Rf3 {[%clk 0:02:54]}  Nbd7 {[%clk 0:03:05]} 10. Rg3 {[%clk 0:02:54]}  Kh8 {[%clk 0:02:54]} 11. Bd3 {[%clk 0:02:49]}  Nxe5 {[%clk 0:02:52]} 12. Bxe5 {[%clk 0:02:48]}  Bd6 {[%clk 0:02:51]} 13. Rh3 {[%clk 0:02:31]}  Ne4 {[%clk 0:02:43]} 14. Qh5 {[%clk 0:02:19]} 1-0

[Event "January 9 Early 2024"]
[Site "https://www.chess.com"]
[Date "2024.01.11"]
[Round "6"]
[White "Zaksaite, Salomeja"]
[Black "Mammadov, Ziya"]
[Result "0-1"]
[Board "4"]
[TimeControl "180+1"]
[WhiteFideId "12801496"]
[BlackFideId "13418890"]
[WhiteElo "2289"]
[BlackElo "1979"]
[WhiteTeam "LTU"]
[BlackTeam "AZE"]
[WhiteClock "0:02:16"]
[BlackClock "0:02:17"]

1. e4 {[%clk 0:02:54]}  e6 {[%clk 0:03:00]} 2. d4 {[%clk 0:02:54]}  d5 {[%clk 0:02:58]} 3. exd5 {[%clk 0:02:55]}  exd5 {[%clk 0:02:59]} 4. Bd3 {[%clk 0:02:54]}  Nf6 {[%clk 0:02:59]} 5. Nc3 {[%clk 0:02:48]}  c5 {[%clk 0:02:59]} 6. dxc5 {[%clk 0:02:46]}  Nc6 {[%clk 0:02:59]} 7. Nge2 {[%clk 0:02:44]}  Bxc5 {[%clk 0:02:59]} 8. Bg5 {[%clk 0:02:43]}  O-O {[%clk 0:02:58]} 9. O-O {[%clk 0:02:43]}  Be6 {[%clk 0:02:57]} 10. Qd2 {[%clk 0:02:41]}  Be7 {[%clk 0:02:46]} 11. Rfe1 {[%clk 0:02:40]}  Ne4 {[%clk 0:02:20]} 12. Nxe4 {[%clk 0:02:36]}  dxe4 {[%clk 0:02:20]} 13. Bxe7 {[%clk 0:02:16]}  Nxe7 {[%clk 0:02:17]} 0-1

[Event "January 9 Early 2024"]
[Site "https://www.chess.com"]
[Date "2024.01.11"]
[Round "6"]
[White "Haldorsen, Benjamin"]
[Black "Arslanov, Shamil"]
[Result "0-1"]
[Board "5"]
[TimeControl "180+1"]
[WhiteFideId "1512633"]
[BlackFideId "4192826"]
[WhiteElo "2430"]
[BlackElo "2627"]
[WhiteTeam "NOR"]
[BlackTeam "RUS"]
[WhiteClock "0:02:26"]
[BlackClock "0:01:57"]

1. Nf3 {[%clk 0:02:42]}  d6 {[%clk 0:02:54]} 2. g3 {[%clk 0:02:43]}  e5 {[%clk 0:02:54]} 3. Bg2 {[%clk 0:02:44]}  f5 {[%clk 0:02:54]} 4. O-O {[%clk 0:02:44]}  Nf6 {[%clk 0:02:55]} 5. d4 {[%clk 0:02:43]}  e4 {[%clk 0:02:54]} 6. Ne1 {[%clk 0:02:43]}  Be7 {[%clk 0:02:55]} 7. c4 {[%clk 0:02:43]}  O-O {[%clk 0:02:55]} 8. Nc3 {[%clk 0:02:44]}  c5 {[%clk 0:02:56]} 9. d5 {[%clk 0:02:43]}  Nbd7 {[%clk 0:02:55]} 10. f3 {[%clk 0:02:43]}  Ne5 {[%clk 0:02:55]} 11. b3 {[%clk 0:02:42]}  Bd7 {[%clk 0:02:49]} 12. fxe4 {[%clk 0:02:40]}  fxe4 {[%clk 0:02:49]} 13. Nxe4 {[%clk 0:02:38]}  Nxe4 {[%clk 0:02:50]} 14. Rxf8+ {[%clk 0:02:37]}  Qxf8 {[%clk 0:02:45]} 15. Bxe4 {[%clk 0:02:38]}  Qf6 {[%clk 0:02:21]} 16. Rb1 {[%clk 0:02:33]}  Rf8 {[%clk 0:02:17]} 17. Nf3 {[%clk 0:02:32]}  Bf5 {[%clk 0:02:00]} 18. Bg5 {[%clk 0:02:26]}  Nxf3+ {[%clk 0:01:57]} 0-1

[Event "January 9 Early 2024"]
[Site "https://www.chess.com"]
[Date "2024.01.11"]
[Round "6"]
[White "Kuhn, Clement"]
[Black "Bashirli, Saadat"]
[Result "1-0"]
[Board "7"]
[TimeControl "180+1"]
[WhiteFideId "36099775"]
[BlackFideId "13429990"]
[WhiteElo "2576"]
[BlackElo "2408"]
[WhiteTeam "FRA"]
[BlackTeam "AZE"]
[WhiteClock "0:02:27"]
[BlackClock "0:01:53"]

1. e4 {[%clk 0:03:00]}  e5 {[%clk 0:02:58]} 2. Nc3 {[%clk 0:02:58]}  Nc6 {[%clk 0:02:58]} 3. g3 {[%clk 0:02:57]}  Nf6 {[%clk 0:02:57]} 4. Bg2 {[%clk 0:02:58]}  Bc5 {[%clk 0:02:57]} 5. Nge2 {[%clk 0:02:59]}  O-O {[%clk 0:02:56]} 6. O-O {[%clk 0:02:59]}  d6 {[%clk 0:02:56]} 7. d3 {[%clk 0:03:00]}  Bg4 {[%clk 0:02:55]} 8. h3 {[%clk 0:02:59]}  Bxe2 {[%clk 0:02:52]} 9. Qxe2 {[%clk 0:02:58]}  h6 {[%clk 0:02:49]} 10. Kh2 {[%clk 0:02:58]}  Nd4 {[%clk 0:02:48]} 11. Qd1 {[%clk 0:02:58]}  c6 {[%clk 0:02:49]} 12. f4 {[%clk 0:02:58]}  exf4 {[%clk 0:02:49]} 13. gxf4 {[%clk 0:02:58]}  Re8 {[%clk 0:02:45]} 14. f5 {[%clk 0:02:56]}  d5 {[%clk 0:02:42]} 15. Bf4 {[%clk 0:02:54]}  Bd6 {[%clk 0:02:32]} 16. Kh1 {[%clk 0:02:39]}  Bxf4 {[%clk 0:02:31]} 17. Rxf4 {[%clk 0:02:39]}  dxe4 {[%clk 0:02:24]} 18. dxe4 {[%clk 0:02:40]}  Qd6 {[%clk 0:02:23]} 19. e5 {[%clk 0:02:39]}  Qxe5 {[%clk 0:02:15]} 20. Qxd4 {[%clk 0:02:39]}  Qe7 {[%clk 0:02:12]} 21. Rff1 {[%clk 0:02:33]}  Rad8 {[%clk 0:02:12]} 22. Qf2 {[%clk 0:02:33]}  Qc7 {[%clk 0:02:00]} 23. Rae1 {[%clk 0:02:30]}  Re2 {[%clk 0:01:53]} 24. Nxe2 {[%clk 0:02:27]} 1-0

[Event "January 9 Early 2024"]
[Site "https://www.chess.com"]
[Date "2024.01.11"]
[Round "6"]
[White "Swicarz, Maciej"]
[Black "Martinez Ramirez, Lennis"]
[Result "0-1"]
[Board "8"]
[TimeControl "180+1"]
[WhiteFideId "1113585"]
[BlackFideId "3509079"]
[WhiteElo "2494"]
[BlackElo "2719"]
[WhiteTeam "POL"]
[BlackTeam "CUB"]
[WhiteClock "0:01:56"]
[BlackClock "0:02:15"]

1. e4 {[%clk 0:03:00]}  c5 {[%clk 0:02:58]} 2. Nf3 {[%clk 0:03:00]}  Nc6 {[%clk 0:02:58]} 3. d4 {[%clk 0:02:59]}  cxd4 {[%clk 0:02:59]} 4. Nxd4 {[%clk 0:02:59]}  Qc7 {[%clk 0:03:00]} 5. c4 {[%clk 0:02:57]}  Nf6 {[%clk 0:02:59]} 6. Nc3 {[%clk 0:02:52]}  e6 {[%clk 0:02:59]} 7. Ndb5 {[%clk 0:02:51]}  Qb8 {[%clk 0:02:59]} 8. a3 {[%clk 0:02:43]}  a6 {[%clk 0:02:52]} 9. Nd4 {[%clk 0:02:43]}  Qe5 {[%clk 0:02:45]} 10. Nxc6 {[%clk 0:02:40]}  bxc6 {[%clk 0:02:45]} 11. Bd3 {[%clk 0:02:39]}  Bc5 {[%clk 0:02:42]} 12. O-O {[%clk 0:02:38]}  g5 {[%clk 0:02:40]} 13. Qe2 {[%clk 0:02:34]}  h5 {[%clk 0:02:39]} 14. Be3 {[%clk 0:02:25]}  Ng4 {[%clk 0:02:38]} 15. g3 {[%clk 0:02:20]}  Nxe3 {[%clk 0:02:37]} 16. fxe3 {[%clk 0:02:21]}  h4 {[%clk 0:02:35]} 17. Kg2 {[%clk 0:02:16]}  a5 {[%clk 0:02:28]} 18. Qf3 {[%clk 0:02:12]}  Rh7 {[%clk 0:02:22]} 19. Ne2 {[%clk 0:02:02]}  Rb8 {[%clk 0:02:18]} 20. Rab1 {[%clk 0:01:56]}  Rxb2 {[%clk 0:02:17]} 21. Rxb2 {[%clk 0:01:56]}  Qxb2 {[%clk 0:02:18]} 22. e5 {[%clk 0:01:56]}  Rg7 {[%clk 0:02:16]} 23. Qxf7+ {[%clk 0:01:56]}  Rxf7 {[%clk 0:02:15]} 0-1

[Event "January 9 Early 2024"]
[Site "https://www.chess.com"]
[Date "2024.01.11"]
[Round "6"]
[White "Hnatyshyn, Anastasiia"]
[Black "Rogov, Matfey"]
[Result "0-1"]
[Board "12"]
[TimeControl "180+1"]
[WhiteFideId "14198339"]
[BlackFideId "44191308"]
[WhiteElo "2274"]
[BlackElo "2551"]
[WhiteTeam "UKR"]
[BlackTeam "RUS"]
[WhiteClock "0:02:11"]
[BlackClock "0:01:51"]

1. Nc3 {[%clk 0:02:59]}  Nf6 {[%clk 0:02:58]} 2. e4 {[%clk 0:02:57]}  e5 {[%clk 0:02:58]} 3. Nf3 {[%clk 0:02:57]}  Nc6 {[%clk 0:02:58]} 4. Bc4 {[%clk 0:02:57]}  Nxe4 {[%clk 0:02:58]} 5. Nxe4 {[%clk 0:02:57]}  d5 {[%clk 0:02:58]} 6. Bd3 {[%clk 0:02:51]}  dxe4 {[%clk 0:02:58]} 7. Bxe4 {[%clk 0:02:52]}  Bd6 {[%clk 0:02:59]} 8. d3 {[%clk 0:02:49]}  Ne7 {[%clk 0:02:51]} 9. d4 {[%clk 0:02:44]}  f5 {[%clk 0:02:38]} 10. dxe5 {[%clk 0:02:41]}  Bb4+ {[%clk 0:02:36]} 11. c3 {[%clk 0:02:29]}  Qxd1+ {[%clk 0:02:36]} 12. Kxd1 {[%clk 0:02:29]}  fxe4 {[%clk 0:02:36]} 13. cxb4 {[%clk 0:02:28]}  exf3 {[%clk 0:02:32]} 14. gxf3 {[%clk 0:02:29]}  Be6 {[%clk 0:02:25]} 15. f4 {[%clk 0:02:28]}  O-O-O+ {[%clk 0:02:25]} 16. Kc2 {[%clk 0:02:28]}  Nc6 {[%clk 0:02:18]} 17. a3 {[%clk 0:02:27]}  Nd4+ {[%clk 0:02:15]} 18. Kc3 {[%clk 0:02:27]}  Ne2+ {[%clk 0:02:15]} 19. Kc2 {[%clk 0:02:26]}  Bf5+ {[%clk 0:02:14]} 20. Kb3 {[%clk 0:02:26]}  Rd3+ {[%clk 0:02:15]} 21. Ka2 {[%clk 0:02:20]}  Be6+ {[%clk 0:02:14]} 22. Kb1 {[%clk 0:02:20]}  Bf5 {[%clk 0:02:06]} 23. Ka2 {[%clk 0:02:19]}  Rhd8 {[%clk 0:01:55]} 24. Be3 {[%clk 0:02:11]}  Be6+ {[%clk 0:01:52]} 25. Kb1 {[%clk 0:02:11]}  Bb3 {[%clk 0:01:51]} 0-1

[Event "January 9 Early 2024"]
[Site "https://www.chess.com"]
[Date "2024.01.11"]
[Round "6"]
[White "Akobian, Varuzhan"]
[Black "Ter-Sahakyan, Samvel"]
[Result "1-0"]
[Board "17"]
[TimeControl "180+1"]
[WhiteFideId "13300580"]
[BlackFideId "13302531"]
[WhiteElo "2703"]
[BlackElo "2900"]
[WhiteTeam "USA"]
[BlackTeam "ARM"]
[WhiteClock "0:02:05"]
[BlackClock "0:01:10"]

1. d4 {[%clk 0:03:00]}  Nf6 {[%clk 0:03:00]} 2. c4 {[%clk 0:03:00]}  e6 {[%clk 0:03:00]} 3. Nf3 {[%clk 0:02:59]}  d5 {[%clk 0:03:01]} 4. cxd5 {[%clk 0:02:58]}  exd5 {[%clk 0:03:01]} 5. Nc3 {[%clk 0:02:58]}  c6 {[%clk 0:02:59]} 6. Qc2 {[%clk 0:02:58]}  Na6 {[%clk 0:02:45]} 7. a3 {[%clk 0:02:55]}  Nc7 {[%clk 0:02:45]} 8. Bg5 {[%clk 0:02:54]}  Be7 {[%clk 0:02:41]} 9. e3 {[%clk 0:02:53]}  O-O {[%clk 0:02:41]} 10. Bd3 {[%clk 0:02:53]}  h6 {[%clk 0:02:40]} 11. Bh4 {[%clk 0:02:52]}  Ne6 {[%clk 0:02:27]} 12. O-O {[%clk 0:02:51]}  Re8 {[%clk 0:02:15]} 13. b4 {[%clk 0:02:41]}  a5 {[%clk 0:02:13]} 14. Rab1 {[%clk 0:02:38]}  axb4 {[%clk 0:02:12]} 15. axb4 {[%clk 0:02:38]}  b5 {[%clk 0:01:45]} 16. Ne5 {[%clk 0:02:36]}  Bb7 {[%clk 0:01:45]} 17. Ne2 {[%clk 0:02:30]}  Rc8 {[%clk 0:01:39]} 18. Bf5 {[%clk 0:02:30]}  Rc7 {[%clk 0:01:35]} 19. Nxf7 {[%clk 0:02:09]}  Kxf7 {[%clk 0:01:17]} 20. Bxe6+ {[%clk 0:02:08]}  Kxe6 {[%clk 0:01:17]} 21. Nf4+ {[%clk 0:02:07]}  Kf7 {[%clk 0:01:15]} 22. Qg6+ {[%clk 0:02:07]}  Kg8 {[%clk 0:01:10]} 23. Ne6 {[%clk 0:02:05]} 1-0

[Event "January 9 Early 2024"]
[Site "https://www.chess.com"]
[Date "2024.01.11"]
[Round "6"]
[White "Boldoo, Erdenepurev"]
[Black "Zgadzaj, Rafal"]
[Result "1-0"]
[Board "20"]
[TimeControl "180+1"]
[WhiteFideId "4901037"]
[BlackFideId "1113712"]
[WhiteElo "2557"]
[BlackElo "2343"]
[WhiteTeam "MGL"]
[BlackTeam "POL"]
[WhiteClock "0:01:20"]
[BlackClock "0:01:56"]

1. d4 {[%clk 0:02:47]}  c6 {[%clk 0:03:00]} 2. c4 {[%clk 0:02:47]}  f5 {[%clk 0:03:00]} 3. Nf3 {[%clk 0:02:48]}  Nf6 {[%clk 0:03:00]} 4. g3 {[%clk 0:02:23]}  d6 {[%clk 0:03:01]} 5. Bg2 {[%clk 0:02:23]}  g6 {[%clk 0:03:01]} 6. O-O {[%clk 0:02:23]}  Bg7 {[%clk 0:03:02]} 7. Nc3 {[%clk 0:02:24]}  O-O {[%clk 0:03:03]} 8. b3 {[%clk 0:02:23]}  a5 {[%clk 0:03:02]} 9. Bb2 {[%clk 0:02:22]}  Na6 {[%clk 0:03:03]} 10. a3 {[%clk 0:02:19]}  Qc7 {[%clk 0:03:01]} 11. Rc1 {[%clk 0:02:18]}  e5 {[%clk 0:03:01]} 12. dxe5 {[%clk 0:01:59]}  dxe5 {[%clk 0:03:02]} 13. Nb5 {[%clk 0:01:58]}  cxb5 {[%clk 0:02:46]} 14. cxb5 {[%clk 0:01:57]}  Qd7 {[%clk 0:02:31]} 15. bxa6 {[%clk 0:01:52]}  e4 {[%clk 0:02:23]} 16. Qxd7 {[%clk 0:01:36]}  Nxd7 {[%clk 0:02:21]} 17. Bxg7 {[%clk 0:01:35]}  Kxg7 {[%clk 0:02:21]} 18. axb7 {[%clk 0:01:34]}  Bxb7 {[%clk 0:02:20]} 19. Rc7 {[%clk 0:01:34]}  Rf7 {[%clk 0:02:08]} 20. Ng5 {[%clk 0:01:32]}  Rc8 {[%clk 0:02:03]} 21. Rxb7 {[%clk 0:01:27]}  Re7 {[%clk 0:02:00]} 22. Rd1 {[%clk 0:01:24]}  h6 {[%clk 0:01:58]} 23. Rbxd7 {[%clk 0:01:19]}  Rxd7 {[%clk 0:01:56]} 24. Rxd7+ {[%clk 0:01:20]}  Kf6 {[%clk 0:01:56]} 25. Nh3 {[%clk 0:01:20]} 1-0

[Event "January 9 Early 2024"]
[Site "https://www.chess.com"]
[Date "2024.01.11"]
[Round "6"]
[White "Nouali, Mohamed"]
[Black "Castellano, Christopher"]
[Result "1-0"]
[Board "23"]
[TimeControl "180+1"]
[WhiteFideId "5502462"]
[BlackFideId "5203651"]
[WhiteElo "2576"]
[BlackElo "2366"]
[WhiteTeam "TUN"]
[BlackTeam "PHI"]
[WhiteClock "0:01:28"]
[BlackClock "0:01:42"]

1. e4 {[%clk 0:03:00]}  g6 {[%clk 0:02:55]} 2. d4 {[%clk 0:02:59]}  Bg7 {[%clk 0:02:56]} 3. Nc3 {[%clk 0:03:00]}  d6 {[%clk 0:02:57]} 4. Be3 {[%clk 0:03:00]}  a6 {[%clk 0:02:58]} 5. Qd2 {[%clk 0:03:00]}  Nd7 {[%clk 0:02:57]} 6. O-O-O {[%clk 0:03:01]}  e6 {[%clk 0:02:56]} 7. f4 {[%clk 0:03:00]}  Ne7 {[%clk 0:02:55]} 8. Nf3 {[%clk 0:03:00]}  b5 {[%clk 0:02:56]} 9. Bd3 {[%clk 0:03:00]}  Bb7 {[%clk 0:02:56]} 10. Kb1 {[%clk 0:03:00]}  Nb6 {[%clk 0:02:56]} 11. h4 {[%clk 0:02:57]}  h5 {[%clk 0:02:55]} 12. Ng5 {[%clk 0:02:56]}  d5 {[%clk 0:02:55]} 13. exd5 {[%clk 0:02:45]}  Nbxd5 {[%clk 0:02:50]} 14. Nce4 {[%clk 0:02:39]}  Nxe3 {[%clk 0:02:41]} 15. Qxe3 {[%clk 0:02:39]}  O-O {[%clk 0:02:35]} 16. c3 {[%clk 0:02:25]}  Nf5 {[%clk 0:02:32]} 17. Qe2 {[%clk 0:02:21]}  b4 {[%clk 0:02:31]} 18. g4 {[%clk 0:02:09]}  hxg4 {[%clk 0:02:31]} 19. h5 {[%clk 0:02:09]}  bxc3 {[%clk 0:02:11]} 20. hxg6 {[%clk 0:01:57]}  fxg6 {[%clk 0:02:08]} 21. Nc5 {[%clk 0:01:46]}  Nxd4 {[%clk 0:01:50]} 22. Qh2 {[%clk 0:01:29]}  Bxh1 {[%clk 0:01:42]} 23. Qh7# {[%clk 0:01:28]} 1-0